bitfinex/quotes_BTCUSD_20250809
["timestamp","ask_amount","ask_price","bid_price","bid_amount"]
[1754717807970,0.19760417,117000.0,116990.0,0.23309211]
[1754717808382,0.19760417,117000.0,116990.0,0.54875489]
[1754717809033,0.19760417,117000.0,116990.0,0.23309211]
[1754717809481,0.19760417,117000.0,116990.0,0.54875489]
[1754717813164,0.19760417,117000.0,116990.0,0.23309211]
[1754717813351,0.19760417,117000.0,116990.0,0.54875489]
[1754717816526,0.19760417,117000.0,116990.0,0.23309211]
[1754717816900,0.19760417,117000.0,116990.0,0.54875489]
[1754717818359,0.19760417,117000.0,116990.0,0.23309211]
[1754717818568,0.19760417,117000.0,116990.0,0.54875489]
[1754717820253,0.19760417,117000.0,116990.0,0.23309211]
[1754717820722,0.19760417,117000.0,116990.0,0.54875489]
[1754717821163,0.19760417,117000.0,116990.0,0.23309211]
[1754717821382,0.51326695,117000.0,116990.0,0.22798211]
[1754717821838,0.51326695,117000.0,116990.0,0.08686211]
[1754717821839,0.19760417,117000.0,116990.0,0.08686211]
[1754717822067,0.51326695,117000.0,116990.0,0.22778211]
[1754717822308,0.19760417,117000.0,116990.0,0.22778211]
[1754717822537,0.51326695,117000.0,116990.0,0.22778211]
[1754717823232,0.19760417,117000.0,116990.0,0.22778211]
[1754717823419,0.51326695,117000.0,116990.0,0.22778211]
[1754717825093,0.51326695,117000.0,116990.0,0.23087211]
[1754717825321,0.17095478,116990.0,116980.0,0.00309]
[1754717825543,0.17098401,116970.0,116960.0,0.31566278]
[1754717825780,0.16072081,116970.0,116960.0,0.08902211]
[1754717825994,0.16072081,116970.0,116960.0,0.23299211]
[1754717826428,0.18639281,116970.0,116960.0,0.55718829]
[1754717826856,0.18639281,116970.0,116960.0,0.2330729]
[1754717827073,0.18639281,116970.0,116960.0,0.54873568]
[1754717827288,0.18739281,116970.0,116960.0,0.2330729]
[1754717827508,0.18739281,116970.0,116960.0,0.54873568]
[1754717828062,0.18739281,116970.0,116960.0,0.2330729]
[1754717828179,0.18739281,116970.0,116960.0,0.54973568]
[1754717828399,0.18739281,116970.0,116960.0,0.2340729]
[1754717828623,0.18739281,116970.0,116960.0,0.2330729]
[1754717828862,0.50305559,116970.0,116960.0,0.2309129]
[1754717829090,0.27418706,116970.0,116960.0,0.2309129]
[1754717829310,0.18739281,116970.0,116960.0,0.2309129]
[1754717829781,0.18739281,116970.0,116960.0,0.2330729]
[1754717830454,0.18739281,116970.0,116960.0,0.54873568]
[1754717830666,0.18739281,116970.0,116960.0,0.2330729]
[1754717831333,0.18739281,116970.0,116960.0,0.14405079]
[1754717832246,0.18739281,116970.0,116960.0,0.14621079]
[1754717836449,0.18739281,116970.0,116960.0,0.14405079]
[1754717836681,0.94864064,116970.0,116960.0,0.14096079]
[1754717836897,0.94864064,116970.0,116960.0,8.079e-05]
[1754717837115,0.52739281,116970.0,116960.0,8.079e-05]
[1754717838471,0.94864064,116970.0,116960.0,8.079e-05]
[1754717838713,0.52739281,116970.0,116960.0,8.079e-05]
[1754717839383,0.52739281,116970.0,116960.0,0.00317079]
[1754717840387,0.52739281,116970.0,116960.0,0.00533079]
[1754717847433,0.52739281,116970.0,116960.0,0.00317079]
[1754717847871,0.52739281,116970.0,116960.0,8.079e-05]
[1754717848310,0.52739281,116970.0,116960.0,0.00328079]
[1754717848757,0.52739281,116970.0,116960.0,8.079e-05]
[1754717849426,0.94864064,116970.0,116960.0,8.079e-05]
[1754717850081,0.52739281,116970.0,116960.0,8.079e-05]
[1754717850535,0.94864064,116970.0,116960.0,8.079e-05]
[1754717851213,1.03543489,116970.0,116960.0,8.079e-05]
[1754717851645,0.61418706,116970.0,116960.0,8.079e-05]
[1754717851873,1.03543489,116970.0,116960.0,8.079e-05]
[1754717852326,1.171317,116970.0,116960.0,1e-08]
[1754717853440,1.175317,116970.0,116960.0,1e-08]
[1754717853899,1.174317,116970.0,116960.0,1e-08]
[1754717854110,1.177317,116970.0,116960.0,1e-08]
[1754717854324,0.75606917,116970.0,116960.0,1e-08]
[1754717854539,1.177317,116970.0,116960.0,1e-08]
[1754717856301,1.59856483,116970.0,116960.0,1e-08]
[1754717856540,1.62356483,116970.0,116960.0,1e-08]
[1754717856762,1.202317,116970.0,116960.0,1e-08]
[1754717856973,1.2103201,116970.0,116960.0,1e-08]
[1754717857198,1.63156793,116970.0,116960.0,1e-08]
[1754717858846,0.78907227,116970.0,116960.0,1e-08]
[1754717859074,1.63156793,116970.0,116960.0,1e-08]
[1754717859524,0.78907227,116970.0,116960.0,1e-08]
[1754717859973,1.63156793,116970.0,116960.0,1e-08]
[1754717860667,0.78907227,116970.0,116960.0,1e-08]
[1754717860883,1.63156793,116970.0,116960.0,1e-08]
[1754717862000,2.06976793,116970.0,116960.0,1e-08]
[1754717862436,2.06976793,116970.0,116920.0,1e-08]
[1754717862655,0.17105713,116920.0,116910.0,0.0036]
[1754717862872,0.31265713,116920.0,116910.0,0.00364724]
[1754717863100,0.73390496,116920.0,116910.0,0.00577724]
[1754717863330,0.31265713,116920.0,116910.0,0.00577724]
[1754717863967,0.73790496,116920.0,116910.0,0.00577724]
[1754717864231,0.31665713,116920.0,116910.0,0.00577724]
[1754717864447,0.73790496,116920.0,116910.0,0.00577724]
[1754717864655,0.39942709,116920.0,116910.0,0.00577724]
[1754717864871,0.82067492,116920.0,116910.0,0.00577724]
[1754717865087,0.82267492,116920.0,116910.0,0.00577724]
[1754717865321,0.82267492,116920.0,116900.0,0.00372]
[1754717865322,0.51107176,116910.0,116900.0,0.00372]
[1754717865561,1.01911384,116910.0,116900.0,0.00599181]
[1754717866000,0.59786601,116910.0,116900.0,0.00599181]
[1754717866501,1.01911384,116910.0,116900.0,0.00599181]
[1754717866710,0.93231959,116910.0,116900.0,0.00599181]
[1754717866924,0.51107176,116910.0,116900.0,0.00599181]
[1754717867144,0.65387176,116910.0,116900.0,0.00599181]
[1754717867360,0.66229863,116910.0,116900.0,0.01019181]
[1754717867579,1.08354646,116910.0,116900.0,0.01019181]
[1754717867789,1.14423341,116910.0,116900.0,0.01019181]
[1754717867974,0.72298558,116910.0,116900.0,0.01019181]
[1754717868223,0.71455871,116910.0,116900.0,0.01019181]
[1754717868434,1.07511959,116910.0,116900.0,0.01019181]
[1754717868641,0.65487176,116910.0,116900.0,0.01019181]
[1754717869945,0.68056276,116910.0,116900.0,0.01019181]
[1754717870643,1.10181059,116910.0,116900.0,0.01019181]
[1754717870865,1.18860484,116910.0,116900.0,0.01019181]
[1754717871275,0.76735701,116910.0,116900.0,0.01019181]
[1754717871486,1.18860484,116910.0,116900.0,0.01019181]
[1754717872151,0.76735701,116910.0,116900.0,0.01019181]
[1754717872361,1.18860484,116910.0,116900.0,0.01019181]
[1754717872841,0.76743701,116910.0,116900.0,0.00806181]
[1754717873054,1.18868484,116910.0,116900.0,0.00806181]
[1754717873255,0.76743701,116910.0,116900.0,0.00806181]
[1754717873460,1.18868484,116910.0,116900.0,0.00806181]
[1754717873663,0.76743701,116910.0,116900.0,0.00806181]
[1754717873836,1.18868484,116910.0,116900.0,0.00806181]
[1754717874897,0.76735701,116910.0,116900.0,0.01016181]
[1754717875097,0.68056276,116910.0,116900.0,0.01016181]
[1754717877063,1.2137527,116910.0,116900.0,1e-08]
[1754717877284,0.79250487,116910.0,116900.0,0.00516001]
[1754717877496,0.79242487,116910.0,116900.0,0.00516001]
[1754717877723,1.2136727,116910.0,116900.0,0.00516001]
[1754717878143,0.79250487,116910.0,116900.0,0.00516001]
[1754717878349,1.2137527,116910.0,116900.0,0.00516001]
[1754717879015,1.28247864,116910.0,116900.0,0.00306001]
[1754717879221,0.86123081,116910.0,116900.0,1e-08]
[1754717879434,1.2137527,116910.0,116900.0,1e-08]
[1754717879788,0.17108639,116900.0,116890.0,5.73409926]
[1754717879984,0.73549422,116900.0,116890.0,5.56896613]
[1754717880198,0.84735633,116900.0,116890.0,5.38305756]
[1754717880399,0.4261085,116900.0,116890.0,5.38305756]
[1754717880622,0.4261085,116900.0,116890.0,4.96081397]
[1754717880623,1.27415058,116900.0,116890.0,4.96081397]
[1754717880864,1.27415058,116900.0,116890.0,4.74550991]
[1754717880865,1.27420058,116900.0,116890.0,4.74550991]
[1754717881146,0.87740275,116900.0,116890.0,4.44460601]
[1754717881348,0.88538327,116900.0,116890.0,4.32978773]
[1754717881584,1.3066311,116900.0,116890.0,4.08559704]
[1754717881796,1.3066311,116900.0,116890.0,3.90593621]
[1754717881971,1.3096311,116900.0,116890.0,3.76074415]
[1754717882186,0.88838327,116900.0,116890.0,3.54232741]
[1754717882550,1.3096311,116900.0,116890.0,3.21502616]
[1754717882785,1.3396311,116900.0,116890.0,3.0956133]
[1754717883203,1.3396311,116900.0,116890.0,2.86482222]
[1754717883373,1.3396311,116900.0,116890.0,2.64398124]
[1754717883374,1.3366311,116900.0,116890.0,2.64398124]
[1754717883589,1.76087893,116900.0,116890.0,2.26313038]
[1754717883783,1.76087893,116900.0,116890.0,2.15671267]
[1754717884033,1.77683972,116900.0,116890.0,2.15671267]
[1754717884220,1.77683972,116900.0,116890.0,1.62676305]
[1754717884639,1.77683972,116900.0,116890.0,1.37485592]
[1754717884845,1.77683972,116900.0,116890.0,1.09543385]
[1754717885258,1.77683972,116900.0,116890.0,0.80772629]
[1754717885500,1.77683972,116900.0,116890.0,0.6307775]
[1754717885695,1.77683972,116900.0,116890.0,0.40917283]
[1754717885902,1.77683972,116900.0,116890.0,0.38438339]
[1754717886117,1.77683972,116900.0,116890.0,0.19688575]
[1754717886357,1.77683972,116900.0,116890.0,0.0313042]
[1754717886358,1.35559189,116900.0,116890.0,0.0313042]
[1754717886554,0.56111567,116880.0,116870.0,0.0004]
[1754717886774,1.71547685,116880.0,116870.0,0.00087302]
[1754717887201,1.72087685,116880.0,116870.0,0.00087302]
[1754717887814,1.69592685,116880.0,116870.0,0.00087302]
[1754717888050,1.72092685,116880.0,116870.0,0.00087302]
[1754717888264,1.72287685,116880.0,116870.0,0.00087302]
[1754717888481,0.88238119,116880.0,116870.0,1e-08]
[1754717888697,1.69992685,116880.0,116870.0,1e-08]
[1754717888936,1.72492685,116880.0,116870.0,1e-08]
[1754717889204,0.53617425,116840.0,116830.0,0.1035]
[1754717889411,1.26147758,116840.0,116830.0,0.10048718]
[1754717890065,1.29516157,116840.0,116830.0,1e-08]
[1754717890276,1.7164094,116840.0,116830.0,1e-08]
[1754717890700,0.88248393,116840.0,116830.0,1e-08]
[1754717891138,1.33362875,116840.0,116830.0,1e-08]
[1754717891606,0.91238092,116840.0,116830.0,1e-08]
[1754717891838,1.33362875,116840.0,116830.0,1e-08]
[1754717892076,0.91238092,116840.0,116830.0,1e-08]
[1754717892286,0.91738092,116840.0,116830.0,1e-08]
[1754717892724,1.33862875,116840.0,116830.0,1e-08]
[1754717892974,0.91738092,116840.0,116830.0,1e-08]
[1754717893223,1.33862875,116840.0,116830.0,1e-08]
[1754717893687,0.91738092,116840.0,116830.0,1e-08]
[1754717894133,1.33862875,116840.0,116830.0,1e-08]
[1754717894350,0.91738092,116840.0,116830.0,1e-08]
[1754717894577,1.33862875,116840.0,116830.0,1e-08]
[1754717894804,0.83645734,116840.0,116830.0,0.00516001]
[1754717895019,0.78564035,116840.0,116830.0,0.00516001]
[1754717895238,0.81064035,116840.0,116830.0,0.00516001]
[1754717895406,0.81064035,116840.0,116830.0,0.02260903]
[1754717895631,0.80164035,116840.0,116830.0,0.02260903]
[1754717895840,0.65672035,116840.0,116830.0,0.02260903]
[1754717895957,0.20485824,116840.0,116830.0,0.44385686]
[1754717896162,0.20188625,116840.0,116830.0,0.44385686]
[1754717896364,0.20188625,116840.0,116830.0,0.02260903]
[1754717896365,0.20488625,116840.0,116830.0,0.02260903]
[1754717896565,0.19988625,116840.0,116830.0,0.02260903]
[1754717896823,0.34536625,116840.0,116830.0,0.02260903]
[1754717897066,0.83192198,116840.0,116830.0,0.02260903]
[1754717897275,1.22742867,116840.0,116830.0,0.02260903]
[1754717898006,0.80618084,116840.0,116830.0,0.02260903]
[1754717898458,1.22742867,116840.0,116830.0,0.02260903]
[1754717898687,1.22742867,116840.0,116830.0,0.00516001]
[1754717898891,0.89305509,116840.0,116830.0,0.00516001]
[1754717899283,0.88905509,116840.0,116830.0,0.00516001]
[1754717899548,0.89305509,116840.0,116830.0,0.00516001]
[1754717899756,0.89297509,116840.0,116830.0,0.00516001]
[1754717899968,0.80418084,116840.0,116830.0,0.42640784]
[1754717900178,0.69231873,116840.0,116830.0,0.44385686]
[1754717900362,0.69631873,116840.0,116830.0,0.44385686]
[1754717900807,0.69431873,116840.0,116830.0,0.44385686]
[1754717901202,0.69631873,116840.0,116830.0,0.44385686]
[1754717902037,0.21083873,116840.0,116830.0,0.44385686]
[1754717902244,0.20288625,116840.0,116830.0,0.44385686]
[1754717902452,0.20088625,116840.0,116830.0,0.44385686]
[1754717902864,0.20288625,116840.0,116830.0,0.44385686]
[1754717903069,0.19888625,116840.0,116830.0,0.44385686]
[1754717903525,0.20088625,116840.0,116830.0,0.02260903]
[1754717903735,0.25860013,116840.0,116830.0,0.44385686]
[1754717904161,0.20584754,116840.0,116830.0,0.02260903]
[1754717904661,0.20684754,116840.0,116830.0,0.02260903]
[1754717904906,0.20684754,116840.0,116830.0,0.44385686]
[1754717905136,0.20684754,116840.0,116830.0,0.02260903]
[1754717905757,0.72826727,116840.0,116830.0,0.02260903]
[1754717905963,1.23630935,116840.0,116830.0,1e-08]
[1754717906377,0.7455839,116840.0,116830.0,1e-08]
[1754717906581,0.7455839,116840.0,116830.0,0.01744903]
[1754717906803,0.7455839,116840.0,116830.0,0.02041903]
[1754717907008,0.7455839,116840.0,116830.0,0.02255903]
[1754717907217,0.7435839,116840.0,116830.0,0.02255903]
[1754717907370,0.7465839,116840.0,116830.0,0.02041903]
[1754717908395,0.7465839,116840.0,116830.0,0.01744903]
[1754717908944,0.7465839,116840.0,116830.0,1e-08]
[1754717911463,1.16783173,116840.0,116830.0,1e-08]
[1754717911670,0.7465839,116840.0,116830.0,1e-08]
[1754717911874,0.7465839,116840.0,116830.0,0.00511001]
[1754717912895,0.20784754,116840.0,116830.0,0.42635784]
[1754717913102,0.35416754,116840.0,116830.0,0.42635784]
[1754717913832,0.20784754,116840.0,116830.0,0.44380686]
[1754717914005,0.18213554,116840.0,116830.0,0.44380686]
[1754717914248,0.18213554,116840.0,116830.0,0.02255903]
[1754717914480,0.18213554,116840.0,116830.0,0.44380686]
[1754717914693,0.18113554,116840.0,116830.0,0.43481898]
[1754717914918,0.17913554,116840.0,116830.0,0.43481898]
[1754717915131,0.00896129,116840.0,116830.0,0.52168109]
[1754717915334,0.001,116840.0,116830.0,0.52168109]
[1754717915991,0.17217425,116840.0,116830.0,0.52168109]
[1754717916621,0.17217425,116840.0,116830.0,0.43481898]
[1754717916812,0.17217425,116840.0,116830.0,0.00511001]
[1754717917045,0.17117425,116840.0,116830.0,0.15119001]
[1754717917248,0.17117425,116840.0,116830.0,0.00611001]
[1754717917586,0.2486543,116840.0,116830.0,0.00711001]
[1754717917800,0.30525976,116840.0,116830.0,0.00711001]
[1754717918006,0.17917668,116840.0,116830.0,0.00611001]
[1754717918213,0.17917668,116840.0,116830.0,0.00511001]
[1754717918871,0.18017668,116840.0,116830.0,0.00511001]
[1754717919699,0.17217425,116840.0,116830.0,0.00511001]
[1754717922084,0.001,116840.0,116830.0,0.26316102]
[1754717922290,0.001,116840.0,116830.0,1.17882999]
[1754717923455,0.001,116840.0,116830.0,0.76657004]
[1754717923646,0.001,116840.0,116830.0,1.17982999]
[1754717923856,0.17116051,116850.0,116840.0,0.01744902]
[1754717924061,0.17116051,116850.0,116840.0,0.43481897]
[1754717925088,0.17216051,116850.0,116840.0,0.43481897]
[1754717926114,0.17216051,116850.0,116840.0,0.02255902]
[1754717926333,0.17216051,116850.0,116840.0,0.43481897]
[1754717929207,0.001,116850.0,116840.0,0.43481897]
[1754717931106,0.001,116850.0,116840.0,0.02255902]
[1754717931359,0.001,116850.0,116840.0,0.43481897]
[1754717933847,0.001,116850.0,116840.0,0.02255902]
[1754717934052,0.001,116850.0,116840.0,0.43481897]
[1754717934691,0.001,116850.0,116840.0,0.44458007]
[1754717935575,0.001,116850.0,116840.0,1.1231691]
[1754717936381,0.001,116850.0,116840.0,1.4631691]
[1754717937385,0.001,116850.0,116840.0,1.6641691]
[1754717938111,0.1,116860.0,116850.0,0.52860862]
[1754717938322,0.1,116860.0,116850.0,1.18733178]
[1754717938882,0.28114495,116860.0,116850.0,0.59415113]
[1754717939082,0.1,116860.0,116850.0,1.01617218]
[1754717939494,0.27114495,116860.0,116850.0,1.01617218]
[1754717939872,0.27114495,116860.0,116850.0,1.01817218]
[1754717940330,0.27114495,116860.0,116850.0,1.01917218]
[1754717941161,0.1,116860.0,116850.0,0.59715113]
[1754717941358,0.1,116860.0,116850.0,1.01917218]
[1754717942395,0.17117065,116850.0,116840.0,0.0032]
[1754717942641,0.21975349,116850.0,116840.0,0.0052]
[1754717942856,0.21975349,116850.0,116840.0,0.42722105]
[1754717943071,0.21975349,116850.0,116840.0,0.0052]
[1754717943278,0.17125065,116850.0,116840.0,0.42722105]
[1754717943495,0.17125065,116850.0,116840.0,0.0052]
[1754717943701,0.17125065,116850.0,116840.0,0.42722105]
[1754717943913,0.17225065,116850.0,116840.0,0.42722105]
[1754717944333,0.001,116850.0,116840.0,0.86669112]
[1754717944549,0.001,116850.0,116840.0,1.04034748]
[1754717944756,0.001,116850.0,116840.0,0.60833183]
[1754717944984,0.001,116850.0,116840.0,0.94833183]
[1754717946030,0.001,116850.0,116840.0,1.11950608]
[1754717946248,0.001,116850.0,116840.0,0.94833183]
[1754717947105,0.1,116860.0,116850.0,0.1711596]
[1754717947322,0.1,116860.0,116850.0,1.46738]
[1754717947548,0.1,116860.0,116850.0,1.81414661]
[1754717948234,0.1,116860.0,116850.0,1.96374661]
[1754717948800,0.1,116860.0,116850.0,1.97324661]
[1754717949035,0.1,116860.0,116850.0,3.03138661]
[1754717949264,0.076,116860.0,116850.0,3.18038661]
[1754717949518,0.076,116860.0,116850.0,2.93534661]
[1754717949715,0.076,116860.0,116850.0,2.77778761]
[1754717950194,0.07308741,116860.0,116850.0,2.77578761]
[1754717950610,0.07308741,116860.0,116850.0,2.77678761]
[1754717951047,0.07308741,116860.0,116850.0,2.34296061]
[1754717951257,0.07308741,116860.0,116850.0,2.33746061]
[1754717951462,0.07308741,116860.0,116850.0,2.34046061]
[1754717951886,0.07308741,116860.0,116850.0,0.95391371]
[1754717952105,0.07308741,116860.0,116850.0,1.34542328]
[1754717952330,0.07308741,116860.0,116850.0,1.75744973]
[1754717952758,0.07308741,116860.0,116850.0,1.87315573]
[1754717953144,0.07308741,116860.0,116850.0,1.75744973]
[1754717953358,0.07308741,116860.0,116850.0,1.84424398]
[1754717953906,0.07308741,116860.0,116850.0,2.04424398]
[1754717955184,0.07308741,116860.0,116850.0,2.24424398]
[1754717956353,0.07308741,116860.0,116850.0,1.42019108]
[1754717956560,0.07308741,116860.0,116850.0,2.24424398]
[1754717957098,0.07308741,116860.0,116850.0,3.09073198]
[1754717957795,0.07308741,116860.0,116850.0,3.11641998]
[1754717958797,0.07308741,116860.0,116850.0,3.26641998]
[1754717960144,0.04908741,116860.0,116850.0,3.53667824]
[1754717960358,1e-08,116860.0,116850.0,3.58580582]
[1754717961613,1e-08,116860.0,116850.0,3.58280582]
[1754717962049,1e-08,116860.0,116850.0,3.58780582]
[1754717962192,1e-08,116860.0,116850.0,3.56280582]
[1754717962387,1e-08,116860.0,116850.0,3.58780582]
[1754717963204,1e-08,116860.0,116850.0,3.55980582]
[1754717963519,1e-08,116860.0,116850.0,3.58880582]
[1754717963684,1e-08,116860.0,116850.0,3.56380582]
[1754717963888,1e-08,116860.0,116850.0,3.58880582]
[1754717964622,1e-08,116860.0,116850.0,3.67880582]
[1754717965489,0.06947762,116910.0,116900.0,0.58311284]
[1754717965684,0.06955762,116910.0,116900.0,0.84053183]
[1754717966118,0.06960762,116910.0,116900.0,0.84053183]
[1754717966634,0.07155762,116910.0,116900.0,0.84053183]
[1754717966855,0.07202965,116910.0,116900.0,0.84918064]
[1754717967988,0.00255203,116910.0,116900.0,0.84918064]
[1754717968653,0.00255203,116910.0,116900.0,0.43715419]
[1754717968864,0.00255203,116910.0,116900.0,0.82866376]
[1754717969052,0.28391141,116910.0,116900.0,0.14952]
[1754717969516,0.28691141,116910.0,116900.0,0.16696902]
[1754717970363,0.21743379,116910.0,116900.0,0.16696902]
[1754717970992,0.04636203,116910.0,116900.0,0.83687611]
[1754717971165,0.04631203,116910.0,116900.0,0.83687611]
[1754717971378,0.00555203,116910.0,116900.0,0.92373822]
[1754717971777,0.00555203,116910.0,116900.0,0.51171177]
[1754717971986,0.00555203,116910.0,116900.0,0.92373822]
[1754717972191,0.00555203,116910.0,116900.0,0.25383113]
[1754717972392,0.00555203,116910.0,116900.0,0.83694397]
[1754717973195,0.00555203,116910.0,116900.0,0.42491752]
[1754717973395,0.00555203,116910.0,116900.0,0.83694397]
[1754717974905,0.00547203,116910.0,116900.0,0.84199397]
[1754717975114,0.00547203,116910.0,116900.0,0.92878822]
[1754717975307,0.00547203,116910.0,116900.0,1.26878822]
[1754717975506,0.00547203,116910.0,116900.0,1.68081467]
[1754717975733,0.00547203,116910.0,116900.0,1.26878822]
[1754717975916,0.00247203,116910.0,116900.0,1.26878822]
[1754717976057,0.00247203,116910.0,116900.0,1.88081467]
[1754717976552,0.00147203,116910.0,116900.0,1.88081467]
[1754717976851,0.00147203,116910.0,116900.0,1.46878822]
[1754717977041,0.00047203,116910.0,116900.0,1.46878822]
[1754717983184,0.00047203,116910.0,116900.0,1.73458821]
[1754717985195,0.00047203,116910.0,116900.0,2.34661466]
[1754717986721,0.00047203,116910.0,116900.0,2.36532962]
[1754717987130,0.00047203,116910.0,116900.0,2.36632962]
[1754717987340,0.00047203,116910.0,116900.0,2.36732962]
[1754717988966,0.00047203,116910.0,116900.0,2.3914572]
[1754717991016,0.00047203,116910.0,116900.0,2.4171352]
[1754717992229,0.00047203,116910.0,116900.0,2.39300762]
[1754717992768,0.00047203,116910.0,116900.0,1.38327074]
[1754717992997,0.00055203,116910.0,116900.0,1.93407667]
[1754717993165,0.00047203,116910.0,116900.0,1.95152569]
[1754717993920,0.00047203,116910.0,116900.0,2.37290962]
[1754717994664,0.00047203,116910.0,116900.0,1.95152569]
[1754717996026,0.00047203,116910.0,116900.0,1.80492569]
[1754717996275,0.00047203,116910.0,116900.0,1.70015179]
[1754717996663,0.00047203,116910.0,116900.0,1.55124569]
[1754717997101,0.00047203,116910.0,116900.0,1.70015179]
[1754717997873,0.00047203,116910.0,116900.0,1.27876786]
[1754717998078,0.00047203,116910.0,116900.0,1.70015179]
[1754717998674,0.00047203,116910.0,116900.0,1.69165179]
[1754717999308,0.00055203,116910.0,116900.0,1.69125179]
[1754718000150,0.00055203,116910.0,116900.0,0.69715361]
[1754718000364,0.00055203,116910.0,116900.0,1.11034144]
[1754718000994,0.17162379,116910.0,116900.0,0.85787112]
[1754718001195,0.17162379,116910.0,116900.0,0.51787112]
[1754718001423,0.17167379,116910.0,116900.0,0.85787112]
[1754718001627,0.17167379,116910.0,116900.0,1.26180603]
[1754718001801,0.17167379,116910.0,116900.0,0.8404221]
[1754718002025,0.17167379,116910.0,116900.0,1.34860028]
[1754718002415,0.17167379,116910.0,116900.0,1.3650493]
[1754718002734,0.17167379,116910.0,116900.0,1.3640493]
[1754718002938,0.17167379,116910.0,116900.0,1.3640093]
[1754718003140,0.17162379,116910.0,116900.0,1.3640093]
[1754718003386,0.17162379,116910.0,116900.0,0.94262537]
[1754718003563,0.17167379,116910.0,116900.0,1.3640093]
[1754718003787,0.17162379,116910.0,116900.0,1.3640093]
[1754718004801,0.17162379,116910.0,116900.0,0.94262537]
[1754718005004,0.17162379,116910.0,116900.0,1.3640093]
[1754718005640,0.17162379,116910.0,116900.0,1.27721505]
[1754718006818,0.17162379,116910.0,116900.0,1.01141506]
[1754718007051,0.17162379,116910.0,116900.0,0.67113506]
[1754718007270,0.17162379,116910.0,116900.0,1.01113506]
[1754718007862,0.17162379,116910.0,116900.0,0.92427295]
[1754718008071,0.17167379,116910.0,116900.0,0.35744902]
[1754718008338,0.17167379,116910.0,116900.0,0.50272902]
[1754718009023,0.17167379,116910.0,116900.0,0.92411295]
[1754718009493,0.17267379,116910.0,116900.0,0.92395295]
[1754718009719,0.17467379,116910.0,116900.0,0.92395295]
[1754718009936,0.17462379,116910.0,116900.0,0.92395295]
[1754718010581,0.18535455,116910.0,116900.0,0.16272902]
[1754718010798,0.18535455,116910.0,116900.0,0.14528]
[1754718011033,0.17467379,116910.0,116900.0,0.14528]
[1754718011461,0.17467379,116910.0,116900.0,0.56666393]
[1754718011682,0.17467379,116910.0,116900.0,0.14528]
[1754718011916,0.17467379,116910.0,116900.0,0.56666393]
[1754718012121,0.17462379,116910.0,116900.0,0.56666393]
[1754718012766,0.17462379,116910.0,116900.0,0.14528]
[1754718012989,0.17467379,116910.0,116900.0,0.14528]
[1754718015891,0.17462379,116910.0,116900.0,0.14528]
[1754718016229,0.17462379,116910.0,116900.0,0.56666393]
[1754718016453,0.17462379,116910.0,116900.0,0.14528]
[1754718018086,0.17462379,116910.0,116900.0,0.56666393]
[1754718018360,0.17462379,116910.0,116900.0,0.14528]
[1754718018565,0.17462379,116910.0,116900.0,0.56666393]
[1754718019121,0.17462379,116910.0,116900.0,0.14528]
[1754718019725,0.17462379,116910.0,116900.0,0.56666393]
[1754718019940,0.17462379,116910.0,116900.0,0.14528]
[1754718020143,0.17108639,116900.0,116890.0,0.77294495]
[1754718020338,0.17116639,116900.0,116890.0,0.93579397]
[1754718020752,0.17116639,116900.0,116890.0,0.93788397]
[1754718021156,0.17108639,116900.0,116890.0,0.93788397]
[1754718021781,0.17108639,116900.0,116890.0,0.51650004]
[1754718021932,0.17108639,116900.0,116890.0,0.93788397]
[1754718024111,0.17108639,116900.0,116890.0,0.51650004]
[1754718024324,0.17108639,116900.0,116890.0,0.93788397]
[1754718024500,0.17108639,116900.0,116890.0,0.51650004]
[1754718024706,0.17116639,116900.0,116890.0,0.51441004]
[1754718024906,0.17116639,116900.0,116890.0,0.93579397]
[1754718025359,0.17116639,116900.0,116890.0,0.93788397]
[1754718025491,0.17116639,116900.0,116890.0,0.51650004]
[1754718025909,0.17108639,116900.0,116890.0,0.93788397]
[1754718026093,0.17108639,116900.0,116890.0,1.00664548]
[1754718026835,0.17108639,116900.0,116890.0,0.93788397]
[1754718027868,0.17108639,116900.0,116890.0,0.51650004]
[1754718028091,0.17108639,116900.0,116890.0,0.93788397]
[1754718030381,0.17108639,116900.0,116890.0,1.108985]
[1754718031548,0.17108639,116900.0,116890.0,0.68760107]
[1754718031735,0.17108639,116900.0,116890.0,1.108985]
[1754718032589,0.17108639,116900.0,116890.0,1.19577925]
[1754718032796,0.00047203,116910.0,116900.0,0.18853541]
[1754718032996,0.00047203,116910.0,116900.0,0.69887145]
[1754718033203,0.00047203,116910.0,116900.0,0.28045752]
[1754718033406,0.00047203,116910.0,116900.0,0.70184145]
[1754718033542,0.00047203,116910.0,116900.0,0.72235833]
[1754718034643,0.00047203,116910.0,116900.0,0.3009744]
[1754718034820,0.00047203,116910.0,116900.0,0.72235833]
[1754718035608,0.00047203,116910.0,116900.0,0.86687833]
[1754718036432,0.00147203,116910.0,116900.0,0.86687833]
[1754718036625,0.00147203,116910.0,116900.0,0.4454944]
[1754718036876,0.00147203,116910.0,116900.0,0.86687833]
[1754718037114,0.00347203,116910.0,116900.0,0.86687833]
[1754718037998,0.00347203,116910.0,116900.0,0.4454944]
[1754718038171,0.00347203,116910.0,116900.0,0.84636145]
[1754718039159,0.00347203,116910.0,116900.0,1.18636145]
[1754718039914,0.00347203,116910.0,116900.0,1.53526755]
[1754718040343,0.00047203,116910.0,116900.0,1.53526755]
[1754718041376,0.00047203,116910.0,116900.0,1.56094755]
[1754718041576,0.00047203,116910.0,116900.0,1.6487418]
[1754718042033,0.00047203,116910.0,116900.0,1.6497418]
[1754718042936,0.00047203,116910.0,116900.0,2.07962573]
[1754718043157,6.999e-05,116910.0,116900.0,2.10504276]
[1754718047149,6.999e-05,116910.0,116900.0,1.2622749]
[1754718047356,6.999e-05,116910.0,116900.0,2.10504276]
[1754718047769,6.999e-05,116910.0,116900.0,2.09654276]
[1754718048198,6.999e-05,116910.0,116900.0,2.36234275]
[1754718049457,6.999e-05,116910.0,116900.0,1.51957489]
[1754718049678,6.999e-05,116910.0,116900.0,2.36234275]
[1754718050882,6.999e-05,116910.0,116900.0,1.94095882]
[1754718051103,6.999e-05,116910.0,116900.0,1.91554179]
[1754718051311,6.999e-05,116910.0,116900.0,1.29299786]
[1754718051520,6.999e-05,116910.0,116900.0,1.72288179]
[1754718057834,6.999e-05,116910.0,116900.0,1.30149786]
[1754718058087,6.999e-05,116910.0,116900.0,1.72288179]
[1754718060254,6.999e-05,116910.0,116900.0,1.30149786]
[1754718060465,6.999e-05,116910.0,116900.0,1.72288179]
[1754718061954,0.00014999,116910.0,116900.0,1.72079179]
[1754718062344,6.999e-05,116910.0,116900.0,1.72293179]
[1754718066486,1.049e-05,116910.0,116900.0,1.72293179]
[1754718068043,1.049e-05,116910.0,116900.0,1.71443179]
[1754718068261,1.049e-05,116910.0,116900.0,1.57107179]
[1754718068464,1.049e-05,116910.0,116900.0,1.71427179]
[1754718069983,1.049e-05,116910.0,116900.0,1.91427179]
[1754718070397,9.049e-05,116910.0,116900.0,1.91427179]